[Event "Mistrovství Čech mládeže 2023 - HD16"]
[Site "Harrachov, Czech Republic"]
[Date "2023.10.26"]
[Round "7.13"]
[White "Barták, Josef"]
[Black "Garabik, Marek"]
[Result "0-1"]
[TimeControl "90m + 30s"]
[WhiteElo "1476"]
[BlackElo "1697"]

1. c4 {[%clk 01:30:44]} {[%emt 00:00:16]} e6 {[%clk 01:30:36]} {[%emt
00:00:24]} 2. Nc3 {[%clk 01:31:08]} {[%emt 00:00:06]} d5 {[%clk 01:30:40]}
{[%emt 00:00:26]} 3. d4 {[%clk 01:31:06]} {[%emt 00:00:31]} Nf6 {[%clk
01:31:00]} {[%emt 00:00:10]} 4. cxd5 {[%clk 01:31:07]} {[%emt 00:00:30]} Nxd5
{[%clk 01:31:01]} {[%emt 00:00:29]} 5. e4 {[%clk 01:31:24]} {[%emt 00:00:12]}
Nxc3 {[%clk 01:30:44]} {[%emt 00:00:47]} 6. bxc3 {[%clk 01:31:48]} {[%emt
00:00:07]} c5 {[%clk 01:30:30]} {[%emt 00:00:44]} 7. Nf3 {[%clk 01:31:45]}
{[%emt 00:00:33]} cxd4 {[%clk 01:30:48]} {[%emt 00:00:12]} 8. cxd4 {[%clk
01:32:10]} {[%emt 00:00:05]} Bb4+ {[%clk 01:31:14]} {[%emt 00:00:04]} 9. Bd2
{[%clk 01:32:32]} {[%emt 00:00:07]} Bxd2+ {[%clk 01:31:41]} {[%emt 00:00:02]}
10. Qxd2 {[%clk 01:32:45]} {[%emt 00:00:18]} O-O {[%clk 01:30:37]} {[%emt
00:01:33]} 11. Bc4 {[%clk 01:31:57]} {[%emt 00:01:18]} Nd7 {[%clk 01:29:53]}
{[%emt 00:01:14]} 12. O-O {[%clk 01:31:19]} {[%emt 00:01:07]} Nf6 {[%clk
01:21:21]} {[%emt 00:09:03]} 13. Qf4 {[%clk 01:24:24]} {[%emt 00:07:25]} Nd7
{[%clk 01:03:26]} {[%emt 00:18:25]} 14. Rfd1 {[%clk 01:18:18]} {[%emt
00:06:35]} Qf6 {[%clk 00:26:56]} {[%emt 00:37:02]} 15. Qg3 {[%clk 00:50:15]}
{[%emt 00:28:33]} Qg6 {[%clk 00:24:43]} {[%emt 00:02:42]} 16. Qxg6 {[%clk
00:48:04]} {[%emt 00:02:41]} hxg6 {[%clk 00:25:03]} {[%emt 00:00:10]} 17. Rac1
{[%clk 00:44:04]} {[%emt 00:04:30]} Nb6 {[%clk 00:20:24]} {[%emt 00:05:10]} 18.
Bb3 {[%clk 00:40:18]} {[%emt 00:04:15]} Bd7 {[%clk 00:18:23]} {[%emt 00:02:31]}
19. Rc7 {[%clk 00:40:08]} {[%emt 00:00:40]} Rfc8 {[%clk 00:13:14]} {[%emt
00:05:40]} 20. Rdc1 {[%clk 00:27:38]} {[%emt 00:13:00]} Bc6 {[%clk 00:11:38]}
{[%emt 00:02:07]} 21. Rxc8+ {[%clk 00:26:10]} {[%emt 00:01:58]} Rxc8 {[%clk
00:12:05]} {[%emt 00:00:03]} 22. d5 {[%clk 00:26:20]} {[%emt 00:00:19]} exd5
{[%clk 00:11:57]} {[%emt 00:00:38]} 23. exd5 {[%clk 00:26:35]} {[%emt
00:00:15]} Bd7 {[%clk 00:12:12]} {[%emt 00:00:15]} 24. Rd1 {[%clk 00:23:34]}
{[%emt 00:03:31]} Ba4 {[%clk 00:11:48]} {[%emt 00:00:55]} 25. g3 {[%clk
00:14:53]} {[%emt 00:09:11]} Bxb3 {[%clk 00:12:02]} {[%emt 00:00:17]} 26. axb3
{[%clk 00:15:18]} {[%emt 00:00:05]} Rd8 {[%clk 00:12:12]} {[%emt 00:00:20]} 27.
d6 {[%clk 00:15:00]} {[%emt 00:00:48]} f6 {[%clk 00:12:20]} {[%emt 00:00:23]}
28. Nh4 {[%clk 00:14:07]} {[%emt 00:01:22]} Kf7 {[%clk 00:12:35]} {[%emt
00:00:15]} 29. Kf1 {[%clk 00:13:46]} {[%emt 00:00:51]} Rd7 {[%clk 00:12:25]}
{[%emt 00:00:42]} 30. Ng2 {[%clk 00:12:00]} {[%emt 00:02:15]} Ke6 {[%clk
00:11:08]} {[%emt 00:01:46]} 31. Nf4+ {[%clk 00:11:37]} {[%emt 00:00:53]} Kf7
{[%clk 00:11:15]} {[%emt 00:00:23]} 32. Ke2 {[%clk 00:11:42]} {[%emt 00:00:25]}
Nc8 {[%clk 00:10:08]} {[%emt 00:01:37]} 33. Rc1 {[%clk 00:10:32]} {[%emt
00:01:41]} Nxd6 {[%clk 00:10:27]} {[%emt 00:00:11]} 34. Nd5 {[%clk 00:10:33]}
{[%emt 00:00:29]} Nf5 {[%clk 00:10:34]} {[%emt 00:00:22]} 35. Rd1 {[%clk
00:10:21]} {[%emt 00:00:42]} Ne7 {[%clk 00:10:16]} {[%emt 00:00:49]} 36. Nc3
{[%clk 00:10:16]} {[%emt 00:00:34]} Rxd1 {[%clk 00:10:21]} {[%emt 00:00:26]} 37.
Nxd1 {[%clk 00:10:21]} {[%emt 00:00:25]} Nd5 {[%clk 00:10:45]} {[%emt
00:00:06]} 38. Kd3 {[%clk 00:09:50]} {[%emt 00:00:41]} Ke6 {[%emt 00:00:41]} 39.
Kd4 {[%clk 00:09:55]} {[%emt 00:00:08]} Kd6 {[%clk 00:11:03]} {[%emt 00:00:37]}
40. Nb2 {[%clk 00:10:18]} {[%emt 00:00:08]} b5 {[%clk 00:10:59]} {[%emt
00:00:34]} 41. Nd3 {[%clk 00:10:41]} {[%emt 00:00:07]} Nc7 {[%clk 00:10:46]}
{[%emt 00:00:43]} 42. Nc5 {[%clk 00:09:10]} {[%emt 00:02:01]} Nd5 {[%clk
00:08:18]} {[%emt 00:02:59]} 43. Nb7+ {[%clk 00:04:45]} {[%emt 00:04:55]} Kc7
{[%clk 00:05:43]} {[%emt 00:03:04]} 44. Nc5 {[%clk 00:03:09]} {[%emt 00:02:06]}
Ne7 {[%clk 00:05:13]} {[%emt 00:01:01]} 45. Ne6+ {[%clk 00:01:30]} {[%emt
00:02:09]} Kd6 {[%clk 00:05:18]} {[%emt 00:00:25]} 46. Nf4 {[%clk 00:01:26]}
{[%emt 00:00:33]} Nc6+ {[%clk 00:05:37]} {[%emt 00:00:12]} 47. Kc3 {[%clk
00:01:43]} {[%emt 00:00:14]} g5 {[%clk 00:05:21]} {[%emt 00:00:45]} 48. Nh5
{[%clk 00:01:34]} {[%emt 00:00:38]} Ke5 {[%clk 00:03:51]} {[%emt 00:02:01]} 49.
Nxg7 {[%clk 00:01:36]} {[%emt 00:00:28]} a5 {[%clk 00:03:40]} {[%emt 00:00:41]}
50. Ne8 {[%clk 00:01:00]} {[%emt 00:01:06]} Ne7 {[%clk 00:03:11]} {[%emt
00:01:00]} 51. Nc7 {[%clk 00:00:37]} {[%emt 00:00:52]} Nd5+ {[%clk 00:03:30]}
{[%emt 00:00:11]} 52. Nxd5 {[%clk 00:01:02]} {[%emt 00:00:05]} Kxd5 {[%clk
00:04:00]} {[%emt 00:00:01]} 53. f3 {[%clk 00:00:58]} {[%emt 00:00:33]} Ke5
{[%clk 00:03:46]} {[%emt 00:00:44]} 54. Kd3 {[%clk 00:01:00]} {[%emt 00:00:28]}
f5 {[%clk 00:03:23]} {[%emt 00:00:53]} 55. h4 {[%clk 00:00:46]} {[%emt
00:00:45]} gxh4 {[%clk 00:03:17]} {[%emt 00:00:36]} 56. gxh4 {[%clk 00:01:11]}
{[%emt 00:00:05]} Kf6 {[%clk 00:03:27]} {[%emt 00:00:20]} 57. Kd4 {[%clk
00:01:10]} {[%emt 00:00:31]} Kg6 {[%clk 00:03:05]} {[%emt 00:00:52]} 58. Ke5
{[%clk 00:00:37]} {[%emt 00:01:02]} a4 {[%clk 00:03:08]} {[%emt 00:00:27]} 59.
bxa4 {[%clk 00:01:03]} {[%emt 00:00:05]} bxa4 {[%clk 00:03:37]} {[%emt
00:00:01]} 60. Kd4 {[%clk 00:01:26]} {[%emt 00:00:07]} Kh5 {[%clk 00:03:55]}
{[%emt 00:00:11]} 61. Kc3 {[%clk 00:01:48]} {[%emt 00:00:04]} Kxh4 {[%clk
00:03:35]} {[%emt 00:00:53]} 62. Kb4 {[%clk 00:02:06]} {[%emt 00:00:12]} Kg3
{[%clk 00:04:01]} {[%emt 00:00:04]} 63. Kxa4 {[%clk 00:02:26]} {[%emt
00:00:11]} Kxf3 {[%clk 00:04:21]} {[%emt 00:00:10]} 0-1

[Event "Mistrovství Čech mládeže 2023 - HD16"]
[Site "Harrachov, Czech Republic"]
[Date "2023.10.26"]
[Round "7.14"]
[White "Tesař, Jakub"]
[Black "Meca, Viktor"]
[Result "1/2-1/2"]
[TimeControl "90m + 30s"]
[WhiteElo "1893"]
[BlackElo "1559"]

1. d4 {[%clk 01:30:53]} {[%emt 00:00:06]} d5 {[%clk 01:30:49]} {[%emt
00:00:10]} 2. c4 {[%clk 01:31:11]} {[%emt 00:00:13]} c6 {[%clk 01:31:07]}
{[%emt 00:00:12]} 3. Nf3 {[%clk 01:31:32]} {[%emt 00:00:09]} Nf6 {[%clk
01:31:23]} {[%emt 00:00:14]} 4. Nc3 {[%clk 01:31:45]} {[%emt 00:00:18]} e6
{[%clk 01:31:42]} {[%emt 00:00:11]} 5. Bg5 {[%clk 01:32:06]} {[%emt 00:00:08]}
Nbd7 {[%clk 01:31:55]} {[%emt 00:00:16]} 6. cxd5 {[%clk 01:32:19]} {[%emt
00:00:17]} exd5 {[%clk 01:31:55]} {[%emt 00:00:30]} 7. e3 {[%clk 01:32:41]}
{[%emt 00:00:08]} Be7 {[%clk 01:30:55]} {[%emt 00:01:30]} 8. Qc2 {[%clk
01:32:51]} {[%emt 00:00:20]} O-O {[%clk 01:29:57]} {[%emt 00:01:27]} 9. Bd3
{[%clk 01:33:10]} {[%emt 00:00:12]} Re8 {[%clk 01:27:58]} {[%emt 00:02:28]} 10.
O-O {[%clk 01:33:29]} {[%emt 00:00:12]} h6 {[%clk 01:23:27]} {[%emt 00:05:02]}
11. Bh4 {[%clk 01:30:16]} {[%emt 00:03:40]} Ne4 {[%clk 01:22:22]} {[%emt
00:01:37]} 12. Bxe4 {[%clk 01:30:07]} {[%emt 00:00:39]} Bxh4 {[%clk 01:20:48]}
{[%emt 00:02:05]} 13. Bh7+ {[%clk 01:30:16]} {[%emt 00:00:19]} Kh8 {[%clk
01:20:59]} {[%emt 00:00:20]} 14. Bd3 {[%clk 01:28:46]} {[%emt 00:01:57]} Be7
{[%clk 01:17:50]} {[%emt 00:03:42]} 15. Rab1 {[%clk 01:27:27]} {[%emt
00:01:49]} b6 {[%clk 01:09:14]} {[%emt 00:09:06]} 16. b4 {[%clk 01:24:59]}
{[%emt 00:02:58]} Bb7 {[%clk 01:09:28]} {[%emt 00:00:15]} 17. Qb3 {[%clk
01:14:32]} {[%emt 00:10:58]} Nf6 {[%clk 00:51:48]} {[%emt 00:18:09]} 18. Rfd1
{[%clk 01:05:56]} {[%emt 00:09:06]} Bd6 {[%clk 00:51:53]} {[%emt 00:00:26]} 19.
Nd2 {[%clk 01:00:25]} {[%emt 00:06:01]} Qc7 {[%clk 00:46:53]} {[%emt 00:05:30]}
20. h3 {[%clk 00:59:52]} {[%emt 00:01:03]} Rad8 {[%clk 00:46:22]} {[%emt
00:00:59]} 21. a4 {[%clk 00:59:08]} {[%emt 00:01:16]} Ba8 {[%clk 00:41:45]}
{[%emt 00:05:07]} 22. Rb2 {[%clk 00:56:36]} {[%emt 00:03:03]} Qb7 {[%clk
00:40:47]} {[%emt 00:01:28]} 23. Ra1 {[%clk 00:53:26]} {[%emt 00:03:39]} Rb8
{[%clk 00:36:22]} {[%emt 00:04:55]} 24. Qa2 {[%clk 00:51:15]} {[%emt 00:02:19]}
Rg8 {[%clk 00:33:56]} {[%emt 00:03:18]} 25. b5 {[%clk 00:45:22]} {[%emt
00:06:24]} c5 {[%clk 00:33:00]} {[%emt 00:01:25]} 26. a5 {[%clk 00:45:22]}
{[%emt 00:00:30]} cxd4 {[%clk 00:30:44]} {[%emt 00:02:46]} 27. exd4 {[%clk
00:45:25]} {[%emt 00:00:28]} bxa5 {[%clk 00:30:14]} {[%emt 00:01:00]} 28. Qxa5
{[%clk 00:45:36]} {[%emt 00:00:18]} Rgc8 {[%emt 00:02:46]} 29. Ne2 {[%clk
00:43:34]} {[%emt 00:01:30]} Rc7 {[%clk 00:26:07]} {[%emt 00:03:24]} 30. Rba2
{[%clk 00:42:23]} {[%emt 00:01:41]} Ne4 {[%clk 00:25:42]} {[%emt 00:00:54]} 31.
Nf3 {[%clk 00:35:06]} {[%emt 00:07:48]} Qb6 {[%clk 00:15:26]} {[%emt 00:10:46]}
32. Qxb6 {[%clk 00:31:47]} {[%emt 00:03:49]} Rxb6 {[%clk 00:15:48]} {[%emt
00:00:08]} 33. Rxa7 {[%clk 00:32:00]} {[%emt 00:00:17]} Rxa7 {[%clk 00:15:51]}
{[%emt 00:00:27]} 34. Rxa7 {[%clk 00:32:23]} {[%emt 00:00:07]} Bb7 {[%clk
00:16:08]} {[%emt 00:00:13]} 35. Ra2 {[%clk 00:16:42]} {[%emt 00:16:09]} Bb8
{[%clk 00:09:05]} {[%emt 00:07:34]} 36. Nd2 {[%clk 00:13:53]} {[%emt 00:03:18]}
Nxd2 {[%clk 00:08:15]} {[%emt 00:01:20]} 37. Rxd2 {[%clk 00:14:21]} {[%emt
00:00:03]} Bd6 {[%clk 00:08:00]} {[%emt 00:00:45]} 38. Rc2 {[%clk 00:11:47]}
{[%emt 00:03:04]} Bb4 {[%clk 00:07:33]} {[%emt 00:00:56]} 39. Rc7 {[%clk
00:11:38]} {[%emt 00:00:39]} Kg8 {[%clk 00:07:30]} {[%emt 00:00:34]} 40. Nc1
{[%clk 00:11:00]} {[%emt 00:01:09]} Bd6 {[%clk 00:07:29]} {[%emt 00:00:30]} 41.
Rc2 {[%clk 00:09:47]} {[%emt 00:01:42]} Kf8 {[%clk 00:06:48]} {[%emt 00:01:12]}
42. Nb3 {[%clk 00:09:54]} {[%emt 00:00:23]} Ke7 {[%clk 00:05:57]} {[%emt
00:01:21]} 43. Nc5 {[%clk 00:10:05]} {[%emt 00:00:19]} Bc8 {[%clk 00:04:27]}
{[%emt 00:02:00]} 44. Ra2 {[%clk 00:08:12]} {[%emt 00:02:23]} Be6 {[%clk
00:03:24]} {[%emt 00:01:32]} 45. Ra7+ {[%clk 00:08:15]} {[%emt 00:00:27]} Kf6
{[%clk 00:03:34]} {[%emt 00:00:20]} 46. Kf1 {[%clk 00:06:34]} {[%emt 00:02:12]}
Bf5 {[%clk 00:03:36]} {[%emt 00:00:28]} 47. Be2 {[%clk 00:06:53]} {[%emt
00:00:10]} Bb8 {[%clk 00:03:07]} {[%emt 00:00:59]} 48. Ra8 {[%clk 00:06:09]}
{[%emt 00:01:14]} Ke7 {[%clk 00:02:48]} {[%emt 00:00:49]} 49. Ke1 {[%clk
00:06:26]} {[%emt 00:00:13]} Bd7 {[%clk 00:02:23]} {[%emt 00:00:55]} 50. Ra5
{[%clk 00:06:10]} {[%emt 00:00:46]} Bc7 {[%clk 00:02:08]} {[%emt 00:00:46]} 51.
Ra7 {[%clk 00:03:43]} {[%emt 00:02:57]} Kd8 {[%clk 00:02:01]} {[%emt 00:00:36]}
52. Rb7 {[%clk 00:02:39]} {[%emt 00:01:34]} Rxb7 {[%clk 00:01:32]} {[%emt
00:00:59]} 53. Nxb7+ {[%clk 00:03:08]} {[%emt 00:00:01]} Kc8 {[%clk 00:01:48]}
{[%emt 00:00:12]} 54. Nc5 {[%clk 00:03:37]} Bb6 {[%clk 00:01:40]} {[%emt
00:00:40]} 55. Kd2 {[%clk 00:03:53]} {[%emt 00:00:14]} Ba5+ {[%clk 00:01:55]}
{[%emt 00:00:15]} 56. Kc2 {[%clk 00:03:52]} {[%emt 00:00:30]} Kc7 {[%clk
00:01:59]} {[%emt 00:00:27]} 57. Kb3 {[%clk 00:02:20]} {[%emt 00:02:02]} Be1
{[%clk 00:01:59]} {[%emt 00:00:30]} 58. f3 {[%clk 00:02:13]} {[%emt 00:00:36]}
Bf2 {[%clk 00:02:01]} {[%emt 00:00:28]} 59. Kc3 {[%clk 00:02:35]} {[%emt
00:00:09]} Bf5 {[%clk 00:01:37]} {[%emt 00:00:53]} 60. Kb4 {[%clk 00:01:57]}
{[%emt 00:01:09]} Bxd4 {[%clk 00:01:38]} {[%emt 00:00:28]} 61. Nb3 {[%clk
00:01:42]} {[%emt 00:00:46]} Bb6 {[%clk 00:01:47]} {[%emt 00:00:21]} 62. Kc3
{[%clk 00:01:43]} {[%emt 00:00:29]} Kd6 {[%clk 00:01:39]} {[%emt 00:00:36]}
1/2-1/2

[Event "Mistrovství Čech mládeže 2023 - HD16"]
[Site "Harrachov, Czech Republic"]
[Date "2023.10.26"]
[Round "7.15"]
[White "Jun, Robert"]
[Black "Bohatyrov, Mykola"]
[Result "0-1"]
[TimeControl "90m + 30s"]
[WhiteElo "1554"]
[BlackElo "1725"]

1. e4 {[%clk 01:30:57]} {[%emt 00:00:01]} d6 {[%clk 01:30:58]} {[%emt
00:00:02]} 2. d4 {[%clk 01:31:21]} {[%emt 00:00:06]} Nf6 {[%clk 01:31:25]}
{[%emt 00:00:04]} 3. Nc3 {[%clk 01:31:45]} {[%emt 00:00:06]} g6 {[%clk
01:31:49]} {[%emt 00:00:05]} 4. Nf3 {[%clk 01:32:02]} {[%emt 00:00:13]} Bg7
{[%clk 01:32:15]} {[%emt 00:00:05]} 5. Bc4 {[%clk 01:32:28]} {[%emt 00:00:05]}
O-O {[%clk 01:32:29]} {[%emt 00:00:16]} 6. O-O {[%clk 01:32:53]} {[%emt
00:00:04]} c6 {[%clk 01:32:57]} {[%emt 00:00:02]} 7. e5 {[%clk 01:32:53]}
{[%emt 00:00:30]} dxe5 {[%clk 01:31:20]} {[%emt 00:02:08]} 8. Nxe5 {[%clk
01:32:44]} {[%emt 00:00:39]} Nd5 {[%clk 01:31:08]} {[%emt 00:00:42]} 9. Qf3
{[%clk 01:32:25]} {[%emt 00:00:49]} e6 {[%clk 01:30:29]} {[%emt 00:01:10]} 10.
Bxd5 {[%clk 01:29:53]} {[%emt 00:03:01]} exd5 {[%emt 00:00:20]} 11. Bf4 {[%clk
01:28:30]} {[%emt 00:01:50]} Be6 {[%clk 01:30:32]} {[%emt 00:00:40]} 12. Rad1
{[%clk 01:27:58]} {[%emt 00:01:02]} Nd7 {[%clk 01:27:06]} {[%emt 00:03:57]} 13.
Rfe1 {[%clk 01:26:17]} {[%emt 00:02:10]} Qc8 {[%clk 01:27:06]} {[%emt
00:00:31]} 14. Na4 {[%clk 01:26:21]} {[%emt 00:00:26]} Nxe5 {[%clk 01:27:07]}
{[%emt 00:00:29]} 15. Bxe5 {[%clk 01:22:13]} {[%emt 00:04:38]} Bg4 {[%clk
01:27:33]} {[%emt 00:00:04]} 16. Qg3 {[%clk 01:21:38]} {[%emt 00:01:05]} Bxd1
{[%clk 01:27:52]} {[%emt 00:00:12]} 17. Rxd1 {[%clk 01:21:22]} {[%emt
00:00:45]} Qf5 {[%clk 01:27:37]} {[%emt 00:00:46]} 18. Rd2 {[%clk 01:19:42]}
{[%emt 00:02:10]} Bxe5 {[%clk 01:27:41]} {[%emt 00:00:25]} 19. dxe5 {[%clk
01:20:04]} {[%emt 00:00:09]} Qe4 {[%clk 01:27:29]} {[%emt 00:00:41]} 20. f4
{[%clk 01:17:09]} {[%emt 00:03:25]} Qxa4 {[%clk 01:25:23]} {[%emt 00:02:37]} 21.
f5 {[%clk 01:17:18]} {[%emt 00:00:21]} Qe4 {[%clk 01:25:02]} {[%emt 00:00:52]}
22. f6 {[%clk 01:17:06]} {[%emt 00:00:41]} Rae8 {[%clk 01:24:29]} {[%emt
00:01:03]} 23. Rd1 {[%clk 01:15:09]} {[%emt 00:02:27]} Rxe5 {[%clk 01:24:33]}
{[%emt 00:00:27]} 24. h3 {[%clk 01:13:55]} {[%emt 00:01:42]} Qe3+ {[%clk
01:24:50]} {[%emt 00:00:14]} 25. Kh2 {[%clk 01:13:56]} {[%emt 00:00:29]} Qxg3+
{[%clk 01:25:12]} {[%emt 00:00:08]} 26. Kxg3 {[%clk 01:14:19]} {[%emt
00:00:06]} Rf5 {[%clk 01:25:37]} {[%emt 00:00:06]} 27. Re1 {[%clk 01:14:35]}
{[%emt 00:00:13]} Rxf6 {[%clk 01:26:01]} {[%emt 00:00:06]} 28. Re7 {[%clk
01:15:01]} {[%emt 00:00:05]} Rb8 {[%clk 01:26:29]} {[%emt 00:00:03]} 29. Re3
{[%clk 01:15:10]} {[%emt 00:00:20]} Re6 {[%clk 01:26:53]} {[%emt 00:00:06]} 30.
Ra3 {[%clk 01:15:35]} {[%emt 00:00:05]} a6 {[%clk 01:27:18]} {[%emt 00:00:05]}
31. Kh4 {[%clk 01:15:59]} {[%emt 00:00:05]} Re2 {[%clk 01:27:44]} {[%emt
00:00:04]} 32. g4 {[%clk 01:16:24]} {[%emt 00:00:05]} h6 {[%clk 01:28:07]}
{[%emt 00:00:08]} 33. Rc3 {[%clk 01:16:33]} {[%emt 00:00:20]} Kg7 {[%clk
01:27:55]} {[%emt 00:00:42]} 34. Kg3 {[%clk 01:16:04]} {[%emt 00:00:59]} d4
{[%clk 01:28:13]} {[%emt 00:00:12]} 35. Rc4 {[%clk 01:16:20]} {[%emt 00:00:13]}
Rd8 {[%clk 01:28:33]} {[%emt 00:00:10]} 36. Kf3 {[%clk 01:16:32]} {[%emt
00:00:18]} Re3+ {[%clk 01:28:59]} {[%emt 00:00:04]} 37. Kg2 {[%clk 01:16:55]}
{[%emt 00:00:06]} d3 {[%clk 01:29:08]} {[%emt 00:00:23]} 38. cxd3 {[%clk
01:17:20]} {[%emt 00:00:05]} Rexd3 {[%clk 01:29:28]} {[%emt 00:00:09]} 39. Rb4
{[%clk 01:17:41]} {[%emt 00:00:09]} b5 {[%clk 01:29:52]} {[%emt 00:00:06]} 40.
a4 {[%clk 01:16:29]} {[%emt 00:01:41]} c5 {[%clk 01:30:01]} {[%emt 00:00:21]}
41. Re4 {[%clk 01:16:42]} {[%emt 00:00:17]} R3d4 {[%clk 01:30:20]} {[%emt
00:00:11]} 42. Rxd4 {[%clk 01:16:53]} {[%emt 00:00:19]} cxd4 {[%clk 01:30:45]}
{[%emt 00:00:06]} 43. axb5 {[%clk 01:17:17]} {[%emt 00:00:05]} axb5 {[%clk
01:31:10]} {[%emt 00:00:05]} 44. Kf3 {[%clk 01:17:36]} {[%emt 00:00:10]} Kf6
{[%clk 01:31:35]} {[%emt 00:00:06]} 45. Ke2 {[%clk 01:17:41]} {[%emt 00:00:25]}
d3+ {[%clk 01:32:00]} {[%emt 00:00:05]} 46. Kd2 {[%clk 01:18:08]} {[%emt
00:00:03]} b4 {[%clk 01:32:27]} {[%emt 00:00:03]} 47. b3 {[%clk 01:18:34]}
{[%emt 00:00:04]} Ke5 {[%clk 01:32:54]} {[%emt 00:00:03]} 48. h4 {[%clk
01:18:58]} {[%emt 00:00:05]} Ke4 {[%clk 01:33:13]} {[%emt 00:00:11]} 49. g5
{[%clk 01:19:11]} {[%emt 00:00:17]} h5 {[%clk 01:33:37]} {[%emt 00:00:07]} 0-1

[Event "Mistrovství Čech mládeže 2023 - HD16"]
[Site "Harrachov, Czech Republic"]
[Date "2023.10.26"]
[Round "7.16"]
[White "Sochor, Antonín"]
[Black "Janoušková, Adéla"]
[Result "1-0"]
[TimeControl "90m + 30s"]
[WhiteElo "1702"]
[BlackElo "1638"]

1. e4 {[%clk 01:30:56]} {[%emt 00:00:04]} c5 {[%clk 01:30:23]} {[%emt
00:00:37]} 2. Nf3 {[%clk 01:31:09]} {[%emt 00:00:17]} d6 {[%clk 01:29:35]}
{[%emt 00:01:18]} 3. d4 {[%clk 01:31:28]} {[%emt 00:00:11]} cxd4 {[%clk
01:30:01]} {[%emt 00:00:04]} 4. Nxd4 {[%clk 01:31:53]} {[%emt 00:00:04]} Nf6
{[%clk 01:30:14]} {[%emt 00:00:17]} 5. Nc3 {[%clk 01:31:59]} {[%emt 00:00:24]}
g6 {[%clk 01:30:14]} {[%emt 00:00:30]} 6. Be3 {[%clk 01:32:04]} {[%emt
00:00:24]} Bg7 {[%clk 01:30:36]} {[%emt 00:00:09]} 7. Bd3 {[%clk 01:32:05]}
{[%emt 00:00:28]} O-O {[%clk 01:29:36]} {[%emt 00:01:31]} 8. O-O {[%clk
01:32:26]} {[%emt 00:00:08]} Ng4 {[%clk 01:25:55]} {[%emt 00:04:12]} 9. Qd2
{[%clk 01:28:38]} {[%emt 00:04:17]} Nxe3 {[%clk 01:24:35]} {[%emt 00:01:51]} 10.
Qxe3 {[%clk 01:28:54]} {[%emt 00:00:13]} Nc6 {[%clk 01:18:08]} {[%emt
00:06:59]} 11. Nce2 {[%clk 01:28:00]} {[%emt 00:01:23]} Qb6 {[%clk 01:12:11]}
{[%emt 00:06:27]} 12. c3 {[%clk 01:27:34]} {[%emt 00:00:55]} Ne5 {[%clk
01:03:39]} {[%emt 00:09:02]} 13. Nf4 {[%clk 01:24:43]} {[%emt 00:03:20]} Ng4
{[%clk 01:01:49]} {[%emt 00:02:21]} 14. Qe2 {[%clk 01:23:43]} {[%emt 00:01:30]}
Bxd4 {[%clk 00:59:00]} {[%emt 00:03:20]} 15. cxd4 {[%clk 01:21:20]} {[%emt
00:02:52]} Qxd4 {[%clk 00:56:58]} {[%emt 00:02:32]} 16. Rfd1 {[%clk 01:20:05]}
{[%emt 00:01:44]} Qb6 {[%clk 00:54:59]} {[%emt 00:02:29]} 17. Nd5 {[%clk
01:20:09]} {[%emt 00:00:27]} Qd8 {[%clk 00:55:15]} {[%emt 00:00:14]} 18. Rac1
{[%clk 01:19:23]} {[%emt 00:01:15]} Ne5 {[%clk 00:54:13]} {[%emt 00:01:34]} 19.
h3 {[%clk 01:19:22]} {[%emt 00:00:31]} Nxd3 {[%clk 00:51:10]} {[%emt 00:03:33]}
20. Rxd3 {[%clk 01:19:23]} {[%emt 00:00:28]} Bd7 {[%clk 00:45:37]} {[%emt
00:06:05]} 21. Qd2 {[%clk 01:16:42]} {[%emt 00:03:10]} Bc6 {[%clk 00:38:50]}
{[%emt 00:07:18]} 22. e5 {[%clk 01:15:30]} {[%emt 00:01:42]} Bxd5 {[%clk
00:30:27]} {[%emt 00:08:54]} 23. Rxd5 {[%clk 01:15:25]} {[%emt 00:00:34]} Rc8
{[%clk 00:30:29]} {[%emt 00:00:28]} 24. Re1 {[%clk 01:13:43]} {[%emt 00:02:13]}
Rc6 {[%clk 00:29:04]} {[%emt 00:01:55]} 25. Qh6 {[%clk 01:01:54]} {[%emt
00:12:19]} f5 {[%clk 00:26:05]} {[%emt 00:03:29]} 26. e6 {[%clk 00:58:42]}
{[%emt 00:03:42]} Rf6 {[%clk 00:25:13]} {[%emt 00:01:23]} 27. Rd4 {[%clk
00:54:32]} {[%emt 00:04:39]} Qf8 {[%clk 00:25:08]} {[%emt 00:00:35]} 28. Qf4
{[%clk 00:54:31]} {[%emt 00:00:31]} Qc8 {[%clk 00:23:47]} {[%emt 00:01:51]} 29.
Qe3 {[%clk 00:52:42]} {[%emt 00:02:19]} Rc5 {[%clk 00:23:41]} {[%emt 00:00:36]}
30. Qb3 {[%clk 00:50:49]} {[%emt 00:02:23]} Qc7 {[%clk 00:20:05]} {[%emt
00:04:06]} 31. Rd5 {[%clk 00:49:04]} {[%emt 00:02:15]} b6 {[%clk 00:19:47]}
{[%emt 00:00:48]} 32. Rxc5 {[%clk 00:48:48]} {[%emt 00:00:46]} Qxc5 {[%clk
00:20:05]} {[%emt 00:00:11]} 33. Qa4 {[%clk 00:48:37]} {[%emt 00:00:40]} Qc7
{[%clk 00:19:13]} {[%emt 00:01:23]} 34. Qd7 {[%clk 00:47:58]} {[%emt 00:01:10]}
Qb8 {[%clk 00:12:41]} {[%emt 00:07:02]} 35. Qxe7 {[%clk 00:48:06]} {[%emt
00:00:22]} Rf8 {[%clk 00:12:52]} {[%emt 00:00:19]} 36. Qd7 {[%clk 00:47:45]}
{[%emt 00:00:49]} a6 {[%clk 00:11:27]} {[%emt 00:01:58]} 37. Rc1 {[%clk
00:47:43]} {[%emt 00:00:30]} Qd8 {[%clk 00:10:23]} {[%emt 00:01:35]} 38. Rc7
{[%clk 00:47:30]} {[%emt 00:00:44]} Qxd7 {[%clk 00:09:30]} {[%emt 00:01:23]} 39.
exd7 {[%clk 00:47:39]} {[%emt 00:00:21]} 1-0